Cogmind - Beta 15 @@@ ROGUE MODE // 2025.05.30 @ 20:29:47 Player: Demo Result: Destroyed by Y-45 Defender with Heavy Assault Rifle Performance ------------- Evolutions (2) 1000 Regions Visited (5) 1000 Robots Destroyed (13) 65 Value Destroyed (158) 158 Prototype IDs (0) 0 Alien Tech Used (0) 0 Bonus (0) 0 TOTAL SCORE: 2223 Bonus ------- None Cogmind --------- Core Integrity 0/550 Matter 251/300 Energy 100/100 System Corruption 0% Temperature Cool (9) Movement Core (50) Location -8/Materials Parts ------- > --- POWER (2) -------- (None) > --- PROPULSION (5) --- (None) > --- UTILITY (2) ------ Improved Signal Interpreter > --- WEAPON (2) ------- (None) > --- INVENTORY (5) ---- High-capacity Matter Pod (200) Improved Sensor Array Improved Terrain Scan Processor EMP Blaster Hammer Peak State ------------ > --- POWER ------------ Backup Power I Backup Power I > --- PROPULSION ------- Backup Propulsion I Backup Propulsion I Flight Unit Flight Unit > --- UTILITY ---------- Small Storage Unit Seismic Detector > --- WEAPON ----------- Medium Laser > --- INVENTORY -------- High-capacity Battery High-capacity Matter Pod Improved Sensor Array Improved Signal Interpreter Improved Terrain Scan Processor Improved Propulsion Shielding EMP Blaster Hammer [Rating: 10] Favorites ----------- Power Backup Power I Engine Backup Power I Propulsion Flight Unit Treads Light Treads Wheel Wheel Hover Unit Backup Propulsion I Flight Unit Flight Unit Utility Small Storage Unit Device Seismic Detector Storage Small Storage Unit Processor Signal Interpreter Weapon Medium Laser Energy Gun Medium Laser Ballistic Gun Light Assault Rifle Impact Weapon Hammer Build | -11 -10 -10 -10 -9 -8 ------- Run | Yrd Mat Min Exi Min Mat Slots Evolved 4 | . . . . . 4 Power 1 | . . . . . 1 Propulsion 3 | . . . . . 3 Utility . | . . . . . . Weapon . | . . . . . . Parts Attached 22 | 5 6 2 1 2 6 Power . | . . . . . . Engine . | . . . . . . Core . | . . . . . . Reactor . | . . . . . . Propulsion 11 | 2 2 2 1 1 3 Treads 3 | 2 . . . . 1 Leg . | . . . . . . Wheel 1 | . . 1 . . . Hover . | . . . . . . Flight 7 | . 2 1 1 1 2 Utility 5 | 1 2 . . . 2 Device 2 | 1 . . . . 1 Storage 1 | . 1 . . . . Processor 2 | . 1 . . . 1 Hackware . | . . . . . . Protection . | . . . . . . Artifact . | . . . . . . Weapon 6 | 2 2 . . 1 1 Energy Gun 4 | 2 1 . . 1 . Energy Cannon . | . . . . . . Ballistic Gun 1 | . 1 . . . . Ballistic Cannon . | . . . . . . Launcher . | . . . . . . Special Weapon . | . . . . . . Impact Weapon 1 | . . . . . 1 Slashing Weapon . | . . . . . . Piercing Weapon . | . . . . . . Special Melee Weapon . | . . . . . . Unidentified Prototypes . | . . . . . . Parts Lost 14 | . 1 5 . 1 7 Power . | . . . . . . Propulsion 10 | . . 3 . 1 6 Utility 1 | . 1 . . . . Weapon 3 | . . 2 . . 1 Highest Loss Streak 5 | . 1 4 . 1 5 To Critical Strikes . | . . . . . . Average Backups 6 | 2 4 6 5 5 6 Power . | . . . . . . Propulsion 2 | 1 3 3 1 . . Utility 2 | . . 1 2 3 4 Weapon 1 | . . 1 2 1 1 Tool/Special . | . . . . . . Unused Backups 15 | 3 5 . . . 7 Power 1 | 1 . . . . . Propulsion 5 | 2 3 . . . . Utility 8 | . 2 . . . 6 Weapon 1 | . . . . . 1 Tool/Special . | . . . . . . Average Slot Usage (%) 72 | . 69 84 53 66 33 Treads 1 | . 9 . . . . Flight 24 | . 18 27 24 28 12 Device 1 | . 9 . . . 2 Storage 12 | . 7 14 14 14 5 Processor 11 | . 4 14 14 14 4 Energy Gun 19 | . 18 27 . 9 4 Peak Build Rating 10 | 5 6 6 4 5 10 Average Rating 5 | 3 4 5 3 4 5 On Entrance 3 | . 4 6 2 4 5 Naked Turns . | . . . . . . Heaviest Build 10 | 3 8 8 5 7 10 Greatest Support 12 | 3 8 10 8 8 12 Greatest Overweight (x) 2 | . 1 2 1 . 1 Average Overweight (x) . | . . . . . . Largest Inventory Capacity 8 | 5 8 8 8 8 8 Average Capacity 7 | 5 6 8 8 8 6 Most Carried 8 | 5 5 7 7 6 8 Average Carried 6 | 2 4 6 5 5 6 Final Capacity 8 | 5 8 8 8 8 5 Final Carried 7 | 5 5 7 6 5 5 Class Distribution -------------------- 100% | Mutant Dominant Class ---------------- Mutant | -10/Materials Mutant | -10/Mines Mutant | -10/Exiles Mutant | -9/Mines Mutant | -8/Materials Resources | -11 -10 -10 -10 -9 -8 ----------- Run | Yrd Mat Min Exi Min Mat Matter Collected 360 | 250 60 10 40 . . Remotely . | . . . . . . Salvage Created 340 | 142 179 . . 19 . Parts 36 | 17 14 . . 5 . Haulers Intercepted 1 | . 1 . . . . Recyclers Shooed 1 | . 1 . . . . Parts Field Recycled . | . . . . . . Retrieved Matter . | . . . . . . Parts Self-Destructed . | . . . . . . Prevented . | . . . . . . Kills | -11 -10 -10 -10 -9 -8 ------- Run | Yrd Mat Min Exi Min Mat Combat Hostiles Destroyed 5 | . 5 . . . . Guns 5 | . 5 . . . . Classes Destroyed 5 | 2 3 . . . . Tunneler 6 | 5 . . . 1 . Hauler 1 | . 1 . . . . Recycler 1 | 1 . . . . . Swarmer 3 | . 3 . . . . Grunt 2 | . 2 . . . . Best Kill Streak 6 | 6 3 . . 1 . Combat Bots Only 3 | . 3 . . . . Max Kills in Single Turn 1 | 1 1 . . 1 . Gunslinging . | . . . . . . Exploded . | . . . . . . Melee . | . . . . . . Uniques/NPCs Destroyed . | . . . . . . Combat | -11 -10 -10 -10 -9 -8 -------- Run | Yrd Mat Min Exi Min Mat Hostile Shots Fired 198 | . 29 12 . 6 151 Missed 84 | . 12 8 . 4 60 Hits 114 | . 17 4 . 2 91 Projectile 114 | . 17 4 . 2 91 AOE 5 | . . 5 . . . Critical Strikes 3 | . . . . . 3 Damage Taken 1613 | . 153 261 . 22 1177 Core 703 | . 67 76 . . 560 Absorbed by Shields . | . . . . . . Core Remaining (%) 71 | 100 . . . 42 . Volleys Fired 43 | 9 25 . . 9 . Largest 2 | 2 2 . . 1 . Hottest 90 | 90 90 . . 50 . Shots Fired 61 | 18 34 . . 9 . Gun 61 | 18 34 . . 9 . Cannon . | . . . . . . Launcher . | . . . . . . Special . | . . . . . . Kinetic 5 | . 5 . . . . Thermal 56 | 18 29 . . 9 . Explosive . | . . . . . . Electromagnetic . | . . . . . . Robot Hit Streak 11 | 3 9 . . 11 . Robot Miss Streak 3 | 1 2 . . 3 . Penetration Max . | . . . . . . Secondary Targets . | . . . . . . Shots Hit Robots 35 | 8 23 . . 4 . Core Hits 20 | 7 11 . . 1 1 Critical Kills . | . . . . . . Critical Parts Destroyed . | . . . . . . Critical Strikes 3 | . 1 . . 2 . Burn 3 | . 1 . . 2 . Melee Attacks 7 | . . . . . 7 Impact 7 | . . . . . 7 Slashing . | . . . . . . Piercing . | . . . . . . Sneak Attacks . | . . . . . . Combat Hostiles . | . . . . . . Follow-up Attacks . | . . . . . . Damage Inflicted 460 | 88 283 . . 61 28 Guns 432 | 88 283 . . 61 . Cannons . | . . . . . . Explosions . | . . . . . . Melee . | . . . . . . Ramming 28 | . . . . . 28 Kinetic 15 | . 15 . . . . Thermal 417 | 88 268 . . 61 . Explosive . | . . . . . . Electromagnetic . | . . . . . . Impact . | . . . . . . Slashing . | . . . . . . Piercing . | . . . . . . Highest Corruption . | . . . . . . Average Corruption . | . . . . . . Corruption Purged . | . . . . . . Corruption Blocked . | . . . . . . Overload Shots . | . . . . . . Overflow Damage . | . . . . . . Projectiles . | . . . . . . Explosions . | . . . . . . Melee . | . . . . . . Knockbacks . | . . . . . . Impact . | . . . . . . Kinetic . | . . . . . . Secondary . | . . . . . . Self-Inflicted Damage 11 | . . . . . 11 Shots . | . . . . . . Rammed 6 | . . . . . 6 Targets Rammed 6 | . . . . . 6 Kicked . | . . . . . . Crushed . | . . . . . . Highest Temperature 100 | 100 88 . . 20 4 Average Temperature 32 | 47 32 . . 9 2 Received Heat Transfer 414 | . 36 15 . 12 351 Siege Activations . | . . . . . . Martial Activations . | . . . . . . Shielding Activations . | . . . . . . Robots Disrupted . | . . . . . . Combat Hostiles . | . . . . . . Robots Corrupted . | . . . . . . Combat Hostiles . | . . . . . . Parts Fried . | . . . . . . Impact Corruptions . | . . . . . . Robots Melted . | . . . . . . Combat Hostiles . | . . . . . . Parts Melted 1 | . 1 . . . . Heat Transferred 1384 | 236 815 . . 333 . Parts Sabotaged . | . . . . . . Parts Stolen . | . . . . . . Parts Stripped . | . . . . . . Power Chain Reactions . | . . . . . . Alert | -11 -10 -10 -10 -9 -8 ------- Run | Yrd Mat Min Exi Min Mat Maximum Alert Level . | . . . . . . Low Security (%) 100 | 100 100 100 . 100 100 Level 1 . | . . . . . . Level 2 . | . . . . . . Level 3 . | . . . . . . Level 4 . | . . . . . . Level 5 . | . . . . . . High Security . | . . . . . . Max Security . | . . . . . . Peak Influence 187 | 15 120 52 . 15 187 Initial 37 | . 3 37 . . 11 Average 16 | 4 78 3 . . 37 Influence Increases 627 | 30 194 60 . 41 302 Destroy 0b10 Robot/C 100 | . 100 . . . . Destroy 0b10 Robot/NC 40 | 30 5 . . 5 . Destroy Leader 22 | . 22 . . . . Successful Hack 43 | . 22 15 . 6 . Disable Machine 15 | . . . . . 15 Destroy Structure 2 | . . . . . 2 Partial Spotted 60 | . 30 . . . 30 Lose Combat Pursuer 345 | . 15 45 . 30 255 Influence Decreases 440 | 25 102 157 . 11 145 Entered New Map 81 | . 2 60 . . 19 Time Decay 298 | 25 90 87 . 6 90 Lost Part 61 | . 10 10 . 5 36 Squads Dispatched 4 | . 1 . . . 3 Investigation 2 | . 1 . . . 1 Extermination . | . . . . . . Reinforcement 2 | . . . . . 2 Assault . | . . . . . . Garrison . | . . . . . . Intercept . | . . . . . . Searches Triggered . | . . . . . . Construction Impeded . | . . . . . . Haulers Reinforced . | . . . . . . Active Scanning Responses . | . . . . . . Cargo Convoy Interrupts . | . . . . . . Stealth | -11 -10 -10 -10 -9 -8 --------- Run | Yrd Mat Min Exi Min Mat Distress Signals 4 | . 2 . . . 2 Communications Jammed . | . . . . . . Distress Signals . | . . . . . . Times Spotted 62 | . 10 23 . 3 26 Peak Tracking Total 22 | . 5 22 . 4 21 Tactical Retreats 7 | . 1 2 . 1 3 Traps | -11 -10 -10 -10 -9 -8 ------- Run | Yrd Mat Min Exi Min Mat Traps Triggered 1 | . 1 . . . . Indirectly . | . . . . . . Trap Hack Attempts . | . . . . . . Triggered . | . . . . . . Disarmed . | . . . . . . Reprogrammed . | . . . . . . Reused . | . . . . . . Traps Extracted . | . . . . . . Installed . | . . . . . . Triggered . | . . . . . . Machines | -11 -10 -10 -10 -9 -8 ---------- Run | Yrd Mat Min Exi Min Mat Machines Disabled 1 | . . . . . 1 Max in Single Turn 1 | . . . . . 1 Machines Repaired . | . . . . . . Machines Dismantled . | . . . . . . Machines Sabotaged . | . . . . . . Overloaded Fab Kills . | . . . . . . Hacking | -11 -10 -10 -10 -9 -8 --------- Run | Yrd Mat Min Exi Min Mat Machines Accessed 7 | . 2 1 1 1 2 Terminals 5 | . 2 1 . 1 1 Fabricators . | . . . . . . Repair Stations 1 | . . . . . 1 Recycling Units . | . . . . . . Scanalyzers . | . . . . . . Garrison Access . | . . . . . . Total Hacks 25 | . 9 4 1 2 9 Successful 13 | . 5 4 1 1 2 Failed 12 | . 4 . . 1 7 Catastrophic 1 | . 1 . . . . Database Lockouts . | . . . . . . Manual 20 | . 9 4 1 2 4 Terminals 19 | . 9 4 . 2 4 Fabricators . | . . . . . . Repair Stations 5 | . . . . . 5 Recycling Units . | . . . . . . Scanalyzers . | . . . . . . Garrison Access . | . . . . . . Terminal Hacks 4 | . 2 . 1 1 . Record 1 | . . . 1 . . Robot Analysis 3 | . 2 . . 1 . Fabricator Hacks . | . . . . . . Repair Station Hacks 2 | . . . . . 2 Refit 2 | . . . . . 2 Recycling Unit Hacks . | . . . . . . Scanalyzer . | . . . . . . Garrison Access Hacks . | . . . . . . Unauthorized Hacks 7 | . 3 4 . . . Terminals 7 | . 3 4 . . . Track 1 | . . 1 . . . Botnet 3 | . 2 1 . . . Detonate 1 | . . 1 . . . Disrupt 2 | . 1 1 . . . Fabricators . | . . . . . . Repair Stations . | . . . . . . Recycling Units . | . . . . . . Scanalyzers . | . . . . . . Garrison Access . | . . . . . . Data Cores Recovered . | . . . . . . Used . | . . . . . . Hacking Detections 5 | . 2 1 . 1 1 Full Trace Events 1 | . . . . . 1 Feedback Events . | . . . . . . Feedback Blocked . | . . . . . . Robot Schematics Acquired . | . . . . . . Robots Built . | . . . . . . Authchips . | . . . . . . Time . | . . . . . . Total Robot Build Rating . | . . . . . . Part Schematics Acquired . | . . . . . . Parts Built . | . . . . . . Authchips . | . . . . . . Time . | . . . . . . Total Part Build Rating . | . . . . . . Parts Repaired . | . . . . . . Time . | . . . . . . Parts Recycled . | . . . . . . Recycled Matter . | . . . . . . Retrieved Matter . | . . . . . . Retrieved Components . | . . . . . . Parts Scanalyzed . | . . . . . . Part Schematics Acquired . | . . . . . . Parts Damaged . | . . . . . . Bothacking | -11 -10 -10 -10 -9 -8 ------------ Run | Yrd Mat Min Exi Min Mat Used RIF Installer . | . . . . . . Robots Hacked . | . . . . . . Non-combat . | . . . . . . Combat . | . . . . . . Robot Hacks Applied . | . . . . . . Relay Couplers Released . | . . . . . . Fabnet Peak Effective % . | . . . . . . Robots Rewired . | . . . . . . Allies Hacked . | . . . . . . Hacks Repelled . | . . . . . . Allies | -11 -10 -10 -10 -9 -8 -------- Run | Yrd Mat Min Exi Min Mat Total Allies . | . . . . . . Largest Group . | . . . . . . Highest-Rated Group . | . . . . . . Highest-Rated Ally . | . . . . . . Total Orders . | . . . . . . Ally Attacks . | . . . . . . Total Damage . | . . . . . . Kills . | . . . . . . Allies Corrupted . | . . . . . . Allies Melted . | . . . . . . Intel | -11 -10 -10 -10 -9 -8 ------- Run | Yrd Mat Min Exi Min Mat Active Infowar (turns) 200 | 12 124 . . . 64 Seismic 200 | 12 124 . . . 64 Robot Analysis Total 3 | . 2 . . 1 . Derelict Logs Recovered 1 | . . . . 1 . Drone Launches . | . . . . . . Drone Recoveries . | . . . . . . Exploration | -11 -10 -10 -10 -9 -8 ------------- Run | Yrd Mat Min Exi Min Mat Turns Passed 1778 | 94 192 1020 136 133 203 Spaces Moved 1565 | 89 189 316 351 296 324 Core 235 | 89 56 6 4 . 80 Treads . | . . . . . . Legs . | . . . . . . Wheels 1 | . . 1 . . . Hover 3 | . . . . . 3 Flight 1326 | . 133 309 347 296 241 Fastest Speed 32 | 50 37 37 37 37 32 Average Speed 39 | 50 41 38 37 37 40 Slowest Speed 150 | 50 100 150 100 37 117 Overloaded Moves . | . . . . . . Propulsion Burnouts . | . . . . . . Robots Hopped 19 | . 1 1 . 4 13 Potential Cave-ins . | . . . . . . Cave-ins Triggered . | . . . . . . Exploration Rate (%) 41 | 3 24 60 68 73 23 Regions Visited 5 Branch Regions 3 Pre-discovered Areas 1 | . . . 1 . . Known Exits Taken 4 | . 1 1 1 1 . Unknown Exits Taken 1 | 1 . . . . . Scrap Searched 2 | . . 2 . . . Spaces Dug 2 | . . . . . 2 Terrain Destroyed 2 | . . . . . 2 Melee 2 | . . . . . 2 Projectile . | . . . . . . AOE . | . . . . . . Terrain Rammed . | . . . . . . Walls Destroyed . | . . . . . . Machines Disabled . | . . . . . . Actions | -11 -10 -10 -10 -9 -8 --------- Run | Yrd Mat Min Exi Min Mat Total 2634 | 120 271 1213 353 305 372 Wait 959 | 4 38 893 . 2 22 Move 1522 | 88 186 313 350 287 298 Hop 19 | . 1 1 . 4 13 Pick Up 26 | 10 6 3 1 1 5 Fast Attach 14 | 3 6 . . . 5 Attach 12 | 2 . 2 2 2 4 Detach 4 | . . 1 . . 3 Swap . | . . . . . . Drop 22 | 4 9 . . . 9 Fire 43 | 9 25 . . 9 . Melee 7 | . . . . . 7 Ram 4 | . . . . . 4 Kick . | . . . . . . Crush 2 | . . . . . 2 Escape Stasis . | . . . . . . Rewire . | . . . . . . Trap . | . . . . . . Miscellaneous . | . . . . . . Route ------- -11/Scrapyard -10/Materials -10/Mines -10/Exiles -9/Mines -8/Materials History --------- Turn | Location | Event 4 | -11/Scrapyard | Discovered new exit (range 16) 95 | -11/Scrapyard | Entered Materials 284 | -10/Materials | Discovered new exit (range 9) 287 | -10/Materials | Identified exit to Mines 287 | -10/Materials | Entered Mines 288 | -10/Mines | Assembled infested the area 313 | -10/Mines | Build established: Mutant 404 | -10/Mines | Met 8R-AWN 411 | -10/Mines | Discovered new exit (range 5) 1185 | -10/Mines | Identified exit to Exiles 1293 | -10/Mines | Core integrity fell below 50% 1307 | -10/Mines | Entered Exiles 1321 | -10/Exiles | Welcomed by 8R-AWN 1324 | -10/Exiles | Lost 4 parts (2n2w) 1328 | -10/Exiles | Met EX-HEX 1339 | -10/Exiles | Met EX-BIN 1369 | -10/Exiles | Met EX-DEC 1371 | -10/Exiles | Learned location of Zion (-7) 1439 | -10/Exiles | Discovered new exit (range 10) 1442 | -10/Exiles | Identified exit to Mines 1443 | -10/Exiles | Entered Mines 1469 | -9/Mines | Learned Materials trap positions 1572 | -9/Mines | Discovered new exit (range 6) 1574 | -9/Mines | Identified exit to Materials 1575 | -9/Mines | Received a Mining Laser from a helpful Derelict 1576 | -9/Mines | Entered Materials 1576 | -8/Materials | Evolved 4 slots: Power x1, Propulsion x3 1577 | -8/Materials | Loaded intel: 22 trap records 1713 | -8/Materials | Core integrity fell below 50% 1725 | -8/Materials | Lost 5 parts (4n1w) 1752 | -8/Materials | Core integrity fell below 20% 1779 | -8/Materials | Destroyed by Y-45 Defender with Heavy Assault Rifle Last Messages --------------- 01693_ Slammed into Y-45 Defender. 01694_ Backup Propulsion I destroyed. 01695_ Dropped Seismic Detector. 01697_ Dropped Sml. Storage Unit. 01702_ Slammed into G-47 Trooper. 01712_ Acquired Arm. Treads. 01714_ Slug penetrates Wall. 01714_ Knocked back. 01715_ Critical hit (Burn: +37). 01715_ S-10 Pest destroyed. 01716_ Slammed into S-10 Pest. 01720_ G-47 Trooper destroyed. 01720_ K-01 Serf collects debris. 01723_ Acquired Cesium-ion Thruster. 01724_ Dropped Arm. Treads. 01726_ Critical hit (Burn: +37). 01726_ L-31 Rogue suffers critical hit (Burn). 01729_ K-01 Serf collects debris. 01733_ Acquired Cesium-ion Thruster. 01746_ Cesium-ion Thruster destroyed. Map ----- +----------------------------------------------------+ | #????##########?????????????????????? | | ##########????# #?????????????????????? | | #???????####### / #?????????????????????? | | ######### # ! #?????????????????????? | | ### ## # ! #?????????????????????? | | ??# ## / #?????????????????????? | | ??# ## # #?????????????????????? | | ??# ######### # #?????????????????????? | | ### ##??????## #### #?????????????????????? | | # [ ######### #??# #?????????????????????? | | / #??#######+##?????????????????????? | | # ! ###########????????# #??????????????????????? | | #####??????????????????#s#??????????????????????? | | ##??????????????????????# #??????????????????????? | | "######?????????????????# #???######?????????????? | | #???????????????### ###? #?????????????? | | #???????????????# t # #?????????????? | | ! #?????########### # """ #?????????????? | | #?????# ; """ #?????????????? | | #/#####?????# ###### # """ #?????????????? | | #???????# ##+###### # #?????????????? | | #######?# # ### ##?######?????????????? | | ## # # "T" #?# #?????????????????????? | | ##!! # # #?# #?????????????????????? | | ##!! + / ] #?# #?????????????????????? | | #### # # #?# @ #?????????????????????? | | ""## # # #?#Y #?????????????????????? | | T"## ?# ########## #?????????????????????? | | ""### ###?# # """ ; #?????????????????????? | | ###?#?????# # "R" # #?????????????????????? | | #?????????# # " " # #?????????????????????? | | #?????????# # !* #u #?????????????????????? | | # #?""?????## # # #?????????????????????? | | # #?"""????#" # * # #?????????????????????? | | # #?""" ???#" ########## #?????????????????????? | | # #??? ?### ###??????# #?????????????????????? | | # ######+## ##?????# #?????????????????????? | | # "####### g# ??????????? | | + H ??????????? | | # ############ ??????????? | | ########/#" [%= #??????????? ######??????????? | | ???# ###+*"##???????????# ###???????????????? | | ???#""" =# %[ #???????????? #?????????????????? | | ???#""" # % #?????????????#?????????????????? | | ???#""" !# #???????????????????????????????? | | ???# # #???????????????????????????????? | | ???# !# [! #???????????????????????????????? | | ???######## !! %%#???????????????????????????????? | | ??????????########???????????????????????????????? | | ?????????????????????????????????????????????????? | +----------------------------------------------------+ Best States ------------- Heat Dissipation 31 Energy Generation 5 Energy Capacity 100 Matter Stores 300 Matter Capacity 300 Sight Range 16 Terrain Scan Density 10 Evasion (%) 63 Recoil Reduction 1 Item Schematics ----------------- None Robot Schematics ------------------ None Fabricated ------------ Nothing Repaired ---------- Nothing Alien Tech Used ----------------- None Achievements -------------- None Challenges ------------ None Game ------ Seed SignalStructuralCompactor Manual? 0 Play Time 00:16:39 Cumulative 214.3 hours Start 2025.05.30 @ 20:16:40 End 2025.05.30 @ 20:29:47 Sessions 1 Manual Loads 0 Difficulty Rogue Special Mode None Game No. 226 Rogue 226 Adventurer 0 Explorer 0 Win Type - Total 1 Types 1/0/0/0/0/0/0/0/0/0 Lore% 73 Gallery% 72 Achievement% 64 Wizard Run 0 Options --------- Layout 1 ASCII 0 Keyboard 0 Movement Numpad Keybinds 0 Fullscreen 1 Font 24/Smallcaps Map View 50x35 Zoom Use 0% Tactical HUD 1 Map Filters NONE Filters NONE Steam 1 RUN: e4324dea-e649-4d77-ab55-fdcd412c9e4f